bitfinex/quotes_SOLUSD_20250204
["timestamp","ask_amount","ask_price","bid_price","bid_amount"]
[1738681220370,37.0992224,214.84,214.74,0.69811612]
[1738681220532,37.0992224,214.84,214.75,37.0992224]
[1738681220731,37.0992224,214.86,214.77,37.0992224]
[1738681220937,0.12549,214.9,214.81,37.0992224]
[1738681220938,37.0992224,214.9,214.81,37.0992224]
[1738681221469,4.6544,214.85,214.77,37.0992224]
[1738681221638,0.25098,214.86,214.77,37.0992224]
[1738681221861,37.0992224,214.92,214.83,37.0992224]
[1738681222075,37.0992224,214.98,214.89,37.0992224]
[1738681222277,4.651,215.01,214.93,37.0992224]
[1738681222588,0.12549,214.99,214.93,37.0992224]
[1738681222775,0.12549,214.93,214.77,0.69784207]
[1738681223092,37.0992224,214.92,214.82,37.0992224]
[1738681223255,37.0992224,214.94,214.84,37.0992224]
[1738681223462,4.9,214.96,214.9,37.0992224]
[1738681223990,0.12549,214.95,214.88,37.0992224]
[1738681224190,4.9,214.96,214.9,37.0992224]
[1738681224481,0.12549,214.99,214.9,37.0992224]
[1738681224781,20.0,214.94,214.87,37.0992224]
[1738681225085,0.25098,214.88,214.77,37.0992224]
[1738681225279,0.12549,214.88,214.79,37.0992224]
[1738681225578,0.12549,214.87,214.79,37.0992224]
[1738681225762,37.0992224,214.92,214.83,37.0992224]
[1738681225965,37.0992224,214.92,214.75,2.0]
[1738681225966,37.0992224,214.9,214.81,37.0992224]
[1738681226280,1.0,214.95,214.75,4.6565]
[1738681226281,0.12549,214.85,214.77,37.0992224]
[1738681226576,0.12549,214.85,214.79,37.0992224]
[1738681226760,4.9,214.89,214.79,37.0992224]
[1738681227080,0.12549,214.82,214.72,37.0992224]
[1738681227284,0.12549,214.79,214.71,37.0992224]
[1738681227454,41.7540224,214.84,214.74,37.0992224]
[1738681227655,37.0992224,214.8,214.7,37.0992224]
[1738681227855,4.9,214.89,214.79,37.0992224]
[1738681228166,37.0992224,214.88,214.78,37.0992224]
[1738681228378,37.0992224,214.94,214.84,37.0992224]
[1738681228591,37.0992224,214.91,214.81,37.0992224]
[1738681228893,37.0992224,214.93,214.83,37.0992224]
[1738681229078,37.0992224,214.89,214.79,37.0992224]
[1738681229258,37.0992224,214.89,214.81,37.0992224]
[1738681229459,0.12549,214.92,214.83,37.0992224]
[1738681229787,37.0992224,214.95,214.85,37.0992224]
[1738681230091,46.6507224,214.99,214.89,37.0992224]
[1738681230296,20.0,214.98,214.91,37.0992224]
[1738681230463,37.6011824,214.97,214.89,37.0992224]
[1738681230662,0.50196,214.97,214.89,37.0992224]
[1738681230959,37.6011824,214.97,214.87,37.0992224]
[1738681231161,37.0992224,214.99,214.91,37.0992224]
[1738681231501,37.0992224,215.06,214.87,15.53733853]
[1738681231655,50.3932224,215.08,214.98,37.0992224]
[1738681231855,4.9,215.08,215.02,37.0992224]
[1738681232287,55.26,215.09,215.02,37.0992224]
[1738681232462,0.03,215.12,215.08,37.0992224]
[1738681232674,0.03,215.12,215.1,37.0992224]
[1738681233016,0.03,215.12,215.11,0.69730352]
[1738681233162,0.03,215.12,215.1,37.0992224]
[1738681233366,0.03,215.12,215.08,37.0992224]
[1738681233688,0.03,215.12,215.1,37.0992224]
[1738681233862,0.03,215.12,215.06,37.0992224]
[1738681234689,0.03,215.12,214.95,24.1778]
[1738681234690,37.1292224,215.12,215.02,37.0992224]
[1738681235059,0.12549,215.09,215.02,37.0992224]
[1738681235357,0.12549,215.1,215.02,37.0992224]
[1738681235585,0.12549,215.1,215.04,37.0992224]
[1738681235785,0.12549,215.1,215.02,37.0992224]
[1738681235985,0.12549,215.08,215.0,37.0992224]
[1738681237071,37.0992224,215.05,214.96,37.0992224]
[1738681237276,41.7493224,215.05,214.96,37.0992224]
[1738681237680,0.25098,215.04,214.96,37.0992224]
[1738681238078,1.0,215.1,214.9,13.41184853]
[1738681238079,37.0992224,215.07,214.98,37.0992224]
[1738681238276,37.0992224,215.11,215.02,37.0992224]
[1738681238476,37.0992224,215.09,215.0,37.0992224]
[1738681238700,0.12549,215.08,215.0,37.0992224]
[1738681239000,37.0992224,215.11,215.02,37.0992224]
[1738681239404,0.12549,215.1,215.02,37.0992224]
[1738681239773,24.6786,215.12,215.07,37.0992224]
[1738681239774,0.03,215.12,215.07,37.0992224]
[1738681240001,0.03,215.12,215.11,37.0992224]
[1738681240198,0.03,215.12,215.11,50.51107093]
[1738681240411,0.03,215.23,215.14,20.0]
[1738681240703,0.03,215.23,215.19,37.0992224]
[1738681241401,0.03,215.23,215.21,37.0992224]
[1738681242390,0.03,215.23,215.19,37.0992224]
[1738681242578,0.03,215.23,215.09,1.69686982]
[1738681242579,0.12549,215.22,215.14,37.0992224]
[1738681242781,0.25098,215.2,215.12,37.0992224]
[1738681243080,0.12549,215.14,215.06,37.0992224]
[1738681243484,4.89918,215.14,215.06,37.0992224]
[1738681243680,0.25098,215.07,215.02,0.063]
[1738681243881,0.12549,215.05,215.02,0.063]
[1738681244086,0.12549,215.03,215.02,0.063]
[1738681244489,37.0992224,215.06,215.02,0.063]
[1738681244694,37.0992224,215.08,215.02,0.063]
[1738681245112,37.0992224,215.04,215.02,0.063]
[1738681245407,0.12549,215.03,215.02,0.063]
[1738681245815,41.7491224,215.06,215.02,0.063]
[1738681246108,4.6499,215.06,215.02,0.063]
[1738681246413,51.01303093,215.03,215.02,0.063]
[1738681246592,52.01303093,215.03,215.02,0.063]
[1738681246903,0.12549,214.99,214.92,37.0992224]
[1738681247091,37.0992224,215.01,214.92,37.0992224]
[1738681247496,0.25098,214.97,214.9,37.0992224]
[1738681247889,37.3502024,214.95,214.86,37.0992224]
[1738681248093,0.12549,214.95,214.88,37.0992224]
[1738681248702,0.12549,214.95,214.83,41.7539224]
[1738681248703,38.0992224,215.05,214.94,37.0992224]
[1738681248901,38.0992224,215.05,214.91,37.0992224]
[1738681248902,37.0992224,214.99,214.91,37.0992224]
[1738681249207,0.25098,214.98,214.89,37.0992224]
[1738681249383,0.25098,214.97,214.89,37.0992224]
[1738681249592,0.12549,214.95,214.89,37.0992224]
[1738681249905,37.0992224,214.99,214.91,37.0992224]
[1738681249906,4.6514,214.99,214.91,37.0992224]
[1738681250081,37.0992224,215.03,214.93,37.0992224]
[1738681250285,41.7498224,215.03,214.95,37.0992224]
[1738681250501,37.0992224,215.05,214.95,37.0992224]
[1738681250710,37.0992224,215.03,214.93,37.0992224]
[1738681250911,0.12549,215.0,214.93,37.0992224]
[1738681251711,4.77679,215.0,214.93,37.0992224]
[1738681252012,4.77679,215.0,214.83,4.6548]
[1738681252013,0.12549,214.94,214.83,4.6548]
[1738681252215,0.25098,214.92,214.83,41.7540224]
[1738681252413,0.25098,214.92,214.81,37.0992224]
[1738681252414,0.12549,214.88,214.81,37.0992224]
[1738681252615,0.12549,214.84,214.8,0.063]
[1738681252911,20.0,214.88,214.81,37.0992224]
[1738681253110,57.0992224,214.88,214.8,0.063]
[1738681253289,0.25098,214.87,214.8,0.063]
[1738681253495,0.25098,214.87,214.81,37.0992224]
[1738681253496,4.90498,214.87,214.81,37.0992224]
[1738681253692,4.6536,214.89,214.81,37.0992224]
[1738681253886,0.50196,214.87,214.8,0.063]
[1738681254200,0.12549,214.85,214.8,0.063]
[1738681254706,37.0992224,214.88,214.81,37.0992224]
[1738681254906,4.6536,214.89,214.81,37.0992224]
[1738681255216,37.6011824,214.88,214.81,37.0992224]
[1738681255528,0.12549,214.88,214.81,37.0992224]
[1738681255715,37.0992224,214.89,214.81,37.0992224]
[1738681256015,0.12549,214.86,214.8,0.063]
[1738681256230,0.25098,214.86,214.8,0.063]
[1738681256604,0.50196,214.86,214.8,0.063]
[1738681256792,0.12549,214.84,214.8,0.063]
[1738681257504,0.12549,214.83,214.8,0.063]
[1738681257719,37.3502024,214.83,214.8,0.063]
[1738681258016,51.01303093,214.81,214.8,0.063]
[1738681258219,37.6011824,214.81,214.8,0.063]
[1738681258600,20.0,214.78,214.67,4.6581]
[1738681258802,0.12549,214.68,214.6,4.6598]
[1738681259124,37.0992224,214.7,214.63,37.0992224]
[1738681259321,20.0,214.69,214.6,37.0992224]
[1738681259625,0.12549,214.65,214.56,20.0]
[1738681259840,0.12549,214.61,214.54,37.0992224]
[1738681260225,37.0992224,214.64,214.56,37.0992224]
[1738681260426,37.0992224,214.62,214.52,37.0992224]
[1738681260606,51.01303093,214.58,214.48,40.7692224]
[1738681260808,52.01303093,214.58,214.48,3.67]
[1738681261332,51.01303093,214.58,214.48,40.7692224]
[1738681261501,51.01303093,214.58,214.48,3.67]
[1738681261698,20.37647,214.54,214.48,3.67]
[1738681261920,37.0992224,214.51,214.48,3.67]
[1738681262120,41.9992224,214.53,214.48,3.67]
[1738681262328,4.6602,214.58,214.5,37.0992224]
[1738681262627,37.0992224,214.61,214.54,37.0992224]
[1738681262838,4.9,214.64,214.58,37.0992224]
[1738681263125,4.9,214.64,214.6,37.0992224]
[1738681263323,4.9,214.64,214.56,37.0992224]
[1738681263622,37.0992224,214.58,214.5,37.0992224]
[1738681263824,0.12549,214.57,214.5,37.0992224]
[1738681264131,0.12549,214.57,214.48,8.3324]
[1738681264132,37.0992224,214.52,214.48,3.67]
[1738681264340,0.37647,214.49,214.48,3.67]
[1738681264521,13.91380853,214.49,214.48,3.67]
[1738681264727,18.68831853,214.49,214.47,0.063]
[1738681264925,37.4756924,214.48,214.47,0.063]
[1738681265123,51.01303093,214.48,214.47,0.063]
[1738681265333,0.37647,214.39,214.38,0.063]
[1738681265705,55.67733093,214.39,214.38,0.063]
[1738681265899,18.57810853,214.39,214.38,0.063]
[1738681266526,55.67733093,214.39,214.38,0.063]
[1738681266723,56.67733093,214.39,214.38,0.063]
[1738681267155,18.57810853,214.39,214.38,0.063]
[1738681267317,0.12549,214.39,214.38,0.063]
[1738681267518,37.0992224,214.4,214.38,0.063]
[1738681267719,138.57733093,214.39,214.38,0.063]
[1738681268036,0.50196,214.34,214.22,37.0992224]
[1738681268224,37.4756924,214.26,214.2,0.063]
[1738681268419,37.2247124,214.26,214.2,0.063]
[1738681268620,4.9,214.27,214.2,37.1622224]
[1738681268839,4.9,214.27,214.22,37.0992224]
[1738681269343,4.9,214.27,214.2,4.7315]
[1738681269344,4.9,214.27,214.2,0.063]
[1738681269555,4.9,214.27,214.22,37.0992224]
[1738681269732,37.0992224,214.34,214.25,37.1622224]
[1738681269921,37.0992224,214.36,214.27,37.0992224]
[1738681270123,37.0992224,214.38,214.29,37.0992224]
[1738681270330,37.0992224,214.38,214.25,4.7303]
[1738681270331,60.22,214.39,214.33,37.0992224]
[1738681270516,4.9,214.39,214.37,37.0992224]
[1738681270715,4.9,214.39,214.33,37.0992224]
[1738681271241,0.12549,214.36,214.25,4.7303]
[1738681271451,13.91380853,214.36,214.25,0.063]
[1738681271934,4.9,214.39,214.25,0.063]
[1738681271935,0.12549,214.31,214.25,0.063]
[1738681272141,0.12549,214.27,214.25,0.063]
[1738681272347,37.0992224,214.29,214.25,0.063]
[1738681272550,37.0992224,214.35,214.26,37.0992224]
[1738681272731,1.0,214.36,214.25,0.063]
[1738681272920,0.50196,214.3,214.25,0.063]
[1738681273123,0.50196,214.26,214.25,0.063]
[1738681273342,0.12549,214.26,214.25,0.063]
[1738681273648,18.45481853,214.3,214.25,0.063]
[1738681273819,20.0,214.27,214.25,0.063]
[1738681274023,13.91380853,214.26,214.25,0.063]
[1738681274242,51.01303093,214.26,214.25,0.063]
[1738681275653,37.0992224,214.28,214.25,0.063]
[1738681275823,37.0992224,214.3,214.25,0.063]
[1738681276151,37.0992224,214.36,214.27,37.0992224]
[1738681276356,0.37647,214.35,214.29,37.0992224]
[1738681276662,0.37647,214.35,214.25,0.063]
[1738681276663,4.9,214.4,214.33,37.0992224]
[1738681276959,37.0992224,214.4,214.33,37.0992224]
[1738681277161,37.0992224,214.36,214.25,0.063]
[1738681277338,0.12549,214.29,214.25,0.063]
[1738681277527,0.25098,214.29,214.25,0.063]
[1738681278356,57.6011824,214.26,214.25,0.063]
[1738681278545,4.9,214.26,214.25,0.063]
[1738681279435,83.9,214.36,214.25,37.1622224]
[1738681279436,119.9992224,214.36,214.25,37.1622224]
[1738681279664,37.0992224,214.42,214.34,37.0992224]
[1738681279832,37.0992224,214.46,214.38,37.0992224]
[1738681280034,37.2247124,214.4,214.3,4.6663]
[1738681280235,82.9,214.47,214.32,13.41184853]
[1738681280447,82.9,214.47,214.31,20.37647]
[1738681280448,4.6626,214.48,214.33,0.69956342]
[1738681280643,33.91380853,214.47,214.31,20.0]
[1738681280951,13.91380853,214.47,214.3,4.6663]
[1738681281265,37.0992224,214.34,214.26,37.0992224]
[1738681281428,37.0992224,214.3,214.25,0.063]
[1738681281624,0.25098,214.27,214.25,0.063]
[1738681281875,42.0174024,214.26,214.25,0.063]
[1738681282074,37.2247124,214.26,214.25,0.063]
[1738681282436,51.01303093,214.26,214.25,0.063]
[1738681283071,52.01303093,214.26,214.25,0.0001]
[1738681283369,52.01303093,214.26,214.15,0.063]
[1738681283370,0.12549,214.16,214.15,0.063]
[1738681283540,51.01303093,214.16,214.15,0.063]
[1738681283735,55.68243093,214.16,214.15,0.063]
[1738681284055,42.2705824,214.16,214.15,0.063]
[1738681284573,55.68243093,214.16,214.15,0.063]
[1738681284782,42.2705824,214.16,214.15,0.063]
[1738681285075,37.0992224,214.22,214.15,0.063]
[1738681285238,4.9,214.24,214.16,37.0992224]
[1738681285239,41.9992224,214.24,214.16,37.0992224]
[1738681285436,41.9992224,214.24,214.15,0.063]
[1738681285437,37.0992224,214.22,214.15,0.063]
[1738681285642,41.9992224,214.24,214.16,37.0992224]
[1738681285851,0.25098,214.23,214.16,37.0992224]
[1738681286050,0.12549,214.21,214.15,0.063]
[1738681286764,4.9,214.24,214.18,37.0992224]
[1738681287170,0.12549,214.23,214.16,37.0992224]
[1738681287364,37.0992224,214.2,214.15,0.063]
[1738681287551,37.0992224,214.18,214.15,0.063]
[1738681287764,0.12549,214.19,214.15,0.063]
[1738681287949,37.0992224,214.26,214.17,37.0992224]
[1738681288152,37.0992224,214.3,214.2,37.0992224]
[1738681288377,37.0992224,214.3,214.22,37.0992224]
[1738681288674,13.91380853,214.23,214.15,0.063]
[1738681288974,0.12549,214.2,214.15,0.063]
[1738681289273,37.0992224,214.21,214.15,0.063]
[1738681289474,0.25098,214.2,214.15,0.063]
[1738681289651,37.0992224,214.23,214.15,0.063]
[1738681289852,41.9992224,214.25,214.16,41.7684224]
[1738681290157,37.0992224,214.29,214.2,37.0992224]
[1738681290558,0.25098,214.26,214.18,37.0992224]
[1738681290757,13.41184853,214.17,214.15,0.063]
[1738681291074,13.41184853,214.17,214.03,0.063]
[1738681291075,0.25098,214.09,214.03,0.063]
[1738681291277,42.2502024,214.09,214.03,0.063]
[1738681291484,5.02549,214.09,214.03,37.1622224]
[1738681291649,4.9,214.09,214.03,37.1622224]
[1738681291851,41.9992224,214.09,214.03,0.063]
[1738681292370,37.0992224,214.14,214.05,37.0992224]
[1738681292691,37.0992224,214.18,214.09,37.0992224]
[1738681292871,0.25098,214.17,214.09,37.0992224]
[1738681293065,0.25098,214.17,214.07,37.0992224]
[1738681293066,0.25098,214.15,214.07,37.0992224]
[1738681293261,37.0992224,214.16,214.07,37.0992224]
[1738681293579,4.9,214.19,214.13,37.0992224]
[1738681293749,37.0992224,214.18,214.09,37.0992224]
[1738681293955,37.0992224,214.12,214.05,37.0992224]
[1738681294155,4.79509,214.15,214.01,37.0992224]
[1738681294156,37.0992224,214.1,214.01,37.0992224]
[1738681294462,0.25098,214.07,213.99,37.0992224]
[1738681294776,37.0992224,214.08,213.99,37.0992224]
[1738681294959,37.0992224,214.08,214.0,20.0]
[1738681295164,0.25098,214.07,214.0,20.0]
[1738681295553,0.25098,214.07,213.99,37.0992224]
[1738681295758,13.41184853,214.1,213.98,0.063]
[1738681295759,0.25098,214.05,213.98,0.063]
[1738681296079,0.12549,214.05,213.98,0.063]
[1738681296279,37.0992224,214.04,213.98,0.063]
[1738681296482,0.12549,213.99,213.98,0.063]
[1738681296659,0.25098,213.99,213.98,0.063]
[1738681296984,37.0992224,214.0,213.98,0.063]
[1738681297160,13.91380853,213.99,213.98,0.063]
[1738681297355,13.91380853,213.99,213.82,4.7397]
[1738681297356,13.91380853,213.95,213.82,4.7397]
[1738681297555,13.91380853,213.95,213.83,57.0992224]
[1738681297556,37.0992224,213.91,213.83,57.0992224]
[1738681297789,37.0992224,213.97,213.89,37.0992224]
[1738681297957,37.0992224,213.99,213.9,37.0992224]
[1738681298163,20.0,213.99,213.82,0.063]
[1738681298378,33.91380853,213.98,213.82,0.063]
[1738681298663,33.91380853,213.98,213.83,20.0]
[1738681299065,37.0992224,213.93,213.85,57.0992224]
[1738681299378,37.0992224,213.89,213.82,4.7397]
[1738681299579,37.0992224,213.91,213.83,37.0992224]
[1738681299785,37.0992224,213.89,213.82,0.063]
[1738681299955,0.12549,213.88,213.82,0.063]
[1738681300163,37.0992224,213.85,213.82,0.063]
[1738681300686,37.0992224,213.87,213.82,0.063]
[1738681300986,37.0992224,213.85,213.82,0.063]
[1738681301283,37.3502024,213.83,213.82,0.063]
[1738681301491,37.0992224,213.83,213.82,0.063]
[1738681301785,37.0992224,213.87,213.82,20.063]
[1738681301975,37.0992224,213.89,213.82,20.063]
[1738681302567,0.12549,213.86,213.82,0.063]
[1738681303184,37.6011824,213.83,213.82,0.063]
[1738681303567,51.01303093,213.83,213.82,0.063]
[1738681303770,37.2247124,213.83,213.82,0.063]
[1738681303974,37.0992224,213.85,213.82,0.063]
[1738681304176,37.0992224,213.83,213.82,0.063]
[1738681304359,37.2247124,213.83,213.82,0.063]
[1738681304562,37.0992224,213.83,213.82,0.063]
[1738681304789,37.0992224,213.85,213.82,0.063]
[1738681305179,37.0992224,213.89,213.82,0.063]
[1738681305585,0.12549,213.88,213.82,0.063]
[1738681305779,37.0992224,213.89,213.82,0.063]
[1738681306865,37.3502024,213.91,213.82,0.063]
[1738681307087,0.12549,213.84,213.82,0.063]
[1738681307294,37.6011824,213.83,213.82,0.063]
[1738681307871,37.6011824,213.83,213.82,0.0001]
[1738681308389,39.6011824,213.83,213.82,0.0001]
[1738681308776,37.6011824,213.83,213.82,0.0001]
[1738681309485,42.2777824,213.83,213.82,0.0001]
[1738681309697,5.17856,213.83,213.82,0.0001]
[1738681309867,0.12549,213.83,213.82,0.0001]
[1738681310191,20.50196,213.79,213.78,0.063]
[1738681310386,0.50196,213.78,213.74,13.41184853]
[1738681310595,57.6011824,213.75,213.74,13.41184853]
[1738681310773,57.6011824,213.75,213.74,11.41184853]
[1738681311214,0.50196,213.74,213.71,0.03]
[1738681311372,37.0992224,213.73,213.71,0.03]
[1738681311689,0.12549,213.74,213.71,0.03]
[1738681311896,23.36621853,213.77,213.71,0.03]
[1738681311897,41.9992224,213.77,213.71,0.03]
[1738681312306,13.66282853,213.74,213.71,0.03]
[1738681312485,0.12549,213.72,213.71,0.03]
[1738681312813,37.0992224,213.75,213.71,0.03]
[1738681313116,0.25098,213.76,213.71,0.03]
[1738681313487,37.0992224,213.73,213.71,0.03]
[1738681313798,0.25098,213.74,213.71,0.03]
[1738681314102,37.0992224,213.75,213.71,0.03]
[1738681314293,55.66205093,213.77,213.71,0.03]
[1738681314502,0.25098,213.74,213.71,0.03]
[1738681314698,37.0992224,213.75,213.71,0.03]
[1738681314898,0.12549,213.74,213.71,0.03]
[1738681315394,37.0992224,213.77,213.71,0.03]
[1738681315799,37.0992224,213.83,213.75,37.0992224]
[1738681315992,23.623473,213.89,213.84,20.0]
[1738681315993,37.0992224,213.89,213.84,20.0]
[1738681316200,37.0992224,213.91,213.84,20.0]
[1738681316603,37.0992224,213.89,213.81,37.0992224]
[1738681316813,37.0992224,213.89,213.79,37.0992224]
[1738681317220,37.0992224,213.89,213.81,37.0992224]
[1738681317221,0.12549,213.88,213.81,37.0992224]
[1738681317717,37.2247124,213.91,213.83,37.0992224]
[1738681317919,0.12549,213.91,213.83,37.0992224]
[1738681318122,37.0992224,213.95,213.85,37.0992224]
[1738681318333,37.0992224,213.93,213.86,20.0]
[1738681318504,37.0992224,213.91,213.86,20.0]
[1738681318708,37.0992224,213.95,213.87,37.0992224]
[1738681318921,37.0992224,213.91,213.83,37.0992224]
[1738681319089,0.25098,213.92,213.85,37.0992224]
[1738681319298,37.0992224,213.93,213.85,37.0992224]
[1738681319732,37.0992224,213.93,213.86,4.6759]
[1738681320116,0.25098,213.92,213.86,20.0]
[1738681320434,37.0992224,213.97,213.89,37.0992224]
[1738681320638,37.0992224,214.01,213.93,37.0992224]
[1738681321010,0.12549,213.94,213.84,4.6761]
[1738681321331,0.12549,213.94,213.79,11.6932]
[1738681321332,37.0992224,213.89,213.81,37.0992224]
[1738681321633,37.2247124,213.93,213.85,37.0992224]
[1738681321804,37.0992224,213.91,213.83,41.7758224]
[1738681322016,0.25098,213.88,213.81,37.0992224]
[1738681322217,37.0992224,213.83,213.76,37.0992224]
[1738681322420,37.0992224,213.83,213.75,4.6781]
[1738681322726,37.0992224,213.83,213.76,37.0992224]
[1738681323173,0.12549,213.82,213.76,37.0992224]
[1738681323355,37.2247124,213.87,213.79,37.0992224]
[1738681323653,37.0992224,213.92,213.84,37.0992224]
[1738681323815,41.7739224,213.92,213.84,37.0992224]
[1738681324142,41.7739224,213.92,213.72,37.1622224]
[1738681324143,13.91380853,213.84,213.72,37.1622224]
[1738681324354,37.0992224,213.76,213.72,0.063]
[1738681324515,37.0992224,213.74,213.72,0.063]
[1738681324720,0.25098,213.73,213.72,0.063]
[1738681325250,13.91380853,213.73,213.72,0.063]
[1738681326023,18.59260853,213.73,213.72,0.063]
[1738681327139,55.69183093,213.73,213.72,0.063]
[1738681329252,13.91380853,213.73,213.72,0.063]
[1738681329559,51.01303093,213.73,213.72,0.063]
[1738681329763,0.37647,213.68,213.55,37.0992224]
[1738681329932,37.2247124,213.61,213.55,4.6826]
[1738681330140,37.0992224,213.61,213.54,4.6828]
[1738681330333,37.2247124,213.61,213.52,37.0992224]
[1738681330551,51.01303093,213.61,213.53,4.6831]
[1738681330735,51.01303093,213.61,213.52,37.0992224]
[1738681330940,51.01303093,213.61,213.54,4.6828]
[1738681330941,37.3502024,213.61,213.54,4.6828]
[1738681331250,37.0992224,213.68,213.6,37.1622224]
[1738681331426,37.0992224,213.66,213.6,0.063]
[1738681331627,13.91380853,213.65,213.6,0.063]
[1738681332642,37.3502024,213.61,213.6,0.063]
[1738681332836,51.01303093,213.61,213.6,0.063]
[1738681333332,55.69443093,213.61,213.6,0.063]
[1738681333838,55.69443093,213.61,213.5,37.0992224]
[1738681333839,0.12549,213.55,213.49,0.063]
[1738681334045,37.0992224,213.59,213.52,37.0992224]
[1738681334252,9.5814,213.61,213.49,0.063]
[1738681334253,20.0,213.58,213.49,0.063]
[1738681334552,13.91380853,213.57,213.49,0.063]
[1738681335132,22.0,213.58,213.49,0.063]
[1738681335133,20.50196,213.5,213.49,0.063]
[1738681335438,0.25098,213.46,213.34,4.6873]
[1738681335633,0.25098,213.46,213.32,37.0992224]
[1738681335634,37.0992224,213.39,213.32,37.0992224]
[1738681335835,37.0992224,213.39,213.32,41.7868224]
[1738681336047,37.0992224,213.35,213.29,49.8182224]
[1738681336256,0.12549,213.34,213.27,45.5420224]
[1738681336445,37.0992224,213.33,213.25,41.7883224]
[1738681336632,0.12549,213.32,213.25,41.7883224]
[1738681336832,0.12549,213.32,213.19,11.726]
[1738681336833,37.0992224,213.31,213.24,4.6894]
[1738681337247,37.0992224,213.31,213.23,37.0992224]
[1738681337248,1.0,213.15,213.14,1.0]
[1738681337447,1.0,213.11,213.07,13.44042602]
[1738681337668,14.91380853,213.06,213.05,15.35298287]
[1738681337836,34.91380853,213.04,213.03,10.0894319]
[1738681338179,21.0,213.04,213.0,53.76170411]
[1738681338465,20.0,213.01,212.94,3.85946761]
[1738681338773,37.0992224,212.95,212.94,3.85946761]
[1738681339067,37.0992224,212.95,212.94,3.72889568]
[1738681339359,21.0,212.92,212.83,7.03383205]
[1738681339653,37.47047791,212.84,212.83,7.03383205]
[1738681339867,37.47047791,212.86,212.83,7.03383205]
[1738681340078,37.47047791,212.84,212.83,7.03383205]
[1738681340439,42.65047791,212.84,212.83,7.03383205]
[1738681340671,5.18,212.84,212.83,7.03383205]
[1738681340957,38.47047791,212.85,212.83,7.03383205]
[1738681341257,1.0,212.81,212.8,0.03]
[1738681341458,75.41551963,212.84,212.8,0.03]
[1738681341642,75.41551963,212.84,212.76,1.0]
[1738681341837,9.42693994,212.83,212.76,1.0]
[1738681342060,9.42693994,212.83,212.74,37.47048065]
[1738681342061,10.42693994,212.83,212.82,38.47047791]
[1738681342260,10.42693994,212.83,212.75,37.47047791]
[1738681342488,9.42693994,212.83,212.74,37.47048065]
[1738681342782,9.42693994,212.82,212.73,24.35893746]
[1738681342998,9.42693994,212.82,212.76,20.0]
[1738681343210,20.55447969,212.84,212.83,20.0]
[1738681343500,7.969e-05,212.84,212.83,37.47047791]
[1738681343795,37.47047791,213.0,212.83,37.47047791]
[1738681343796,37.47047791,212.98,212.83,37.47047791]
[1738681343967,1.0,212.97,212.91,37.47047791]
[1738681344278,55.64,213.06,212.91,37.47047791]
[1738681344279,37.70775983,212.92,212.91,37.47047791]
[1738681344585,37.70775983,212.92,212.9,37.47047791]
[1738681344775,5.983e-05,212.92,212.9,37.328402]
[1738681344972,5.983e-05,212.92,212.91,37.82309188]
[1738681345173,1.063,213.04,212.92,16.4379]
[1738681345501,0.063,213.04,213.03,20.0]
[1738681346061,0.063,213.04,213.02,37.47047791]
[1738681346265,43.99238647,213.11,213.06,20.0]
[1738681346483,43.99238647,213.11,213.09,37.47047791]
[1738681346862,2.0,213.1,213.02,37.47047791]
[1738681347060,1.0,213.07,212.98,37.47047791]
[1738681347273,56.26139043,213.07,213.02,37.47047791]
[1738681347477,2.0,213.05,212.97,37.47047791]
[1738681347687,37.47047791,213.01,212.93,37.47047791]
[1738681347889,2.0,213.0,212.91,37.47047791]
[1738681348086,24.48794349,212.99,212.91,37.47047791]
[1738681348277,1.0,212.94,212.87,37.47047791]
[1738681348474,37.47047791,212.95,212.9,20.0]
[1738681348475,1.0,212.95,212.9,20.0]
[1738681348780,2.0,212.96,212.9,20.0]
[1738681348994,1.0,213.0,212.94,20.0]
[1738681349165,38.47047791,213.02,212.93,37.47047791]
[1738681349166,2.0,213.01,212.93,37.47047791]